[Event "Romanian-ch Open 2022"]
[Site "Eforie Nord"]
[Date "2022.02.21"]
[Round "2.26"]
[White "Sachilaru, Alexandru"]
[Black "Butolo, Alexandru-Mircea"]
[Result "1/2-1/2"]
[ECO "E01"]
[WhiteElo "2085"]
[BlackElo "1850"]
[Annotator "ChessBase"]
[PlyCount "75"]
[EventDate "2022.02.20"]
[EventType "swiss"]
[EventCountry "ROU"]
[SourceTitle "playchess.com"]
[Source "ChessBase"]
[SourceQuality "1"]
[TimeControl "40/5400+30:900+30"]

1. d4 {[%emt 0:00:09]} Nf6 {[%emt 0:01:13]} 2. c4 {[%emt 0:00:14]} e6 {[%emt 0:00:53]} 3. Nf3 {[%emt 0:00:43]} d5 {[%emt 0:03:01]} 4. g3 {[%emt 0:00:31]} c6 {[%emt 0:02:33]} 5. Bg2 {[%emt 0:01:15]} Bd6 {[%emt 0:01:38]} 6. Nc3 {[%emt 0:00:49]} Nbd7 {[%emt 0:09:53]} 7. O-O {[%emt 0:02:15]} dxc4 {[%emt 0:04:45]} 8. e4 {[%emt 0:06:54]} e5 {[%emt 0:06:48]} 9. Qe2 {[%emt 0:03:39]} O-O {[%emt 1:04:16]} 10. Qxc4 {[%emt 0:02:51]} Qc7 {[%emt 0:00:00]} 11. Bg5 {[%emt 0:05:50]} b5 {[%emt 0:00:00]} 12. Qe2 {[%emt 0:01:50]} b4 {[%emt 0:00:00]} 13. dxe5 {[%emt 0:05:56]} Bxe5 {[%emt 0:00:00]} 14. Nd1 {[%emt 0:02:27]} a5 {[%emt 0:00:00]} 15. Nxe5 {[%emt 0:02:52]} Qxe5 {[%emt 0:00:00]} 16. Bf4 {[%emt 0:01:07]} Qe6 {[%emt 0:00:00]} 17. Qc2 {[%emt 0:02:24]} Ba6 {[%emt 0:00:00]} 18. Re1 {[%emt 0:01:58]} Ne5 {[%emt 0:00:00]} 19. Bxe5 {[%emt 0:01:11]} Qxe5 {[%emt 0:00:00]} 20. Ne3 {[%emt 0:00:54]} Rfd8 {[%emt 0:00:00]} 21. Rad1 {[%emt 0:01:56]} Bb5 {[%emt 0:00:00]} 22. f4 {[%emt 0:02:33]} Qe6 {[%emt 0:00:00]} 23. b3 {[%emt 0:01:56]} h6 {[%emt 0:00:00]} 24. e5 {[%emt 0:04:50]} Nd5 {[%emt 0:00:00]} 25. Nxd5 {[%emt 0:00:37]} cxd5 {[%emt 0:00:00]} 26. Qc5 {[%emt 0:00:55]} Qc6 {[%emt 0:00:00]} 27. Rxd5 {[%emt 0:04:49]} Rxd5 {[%emt 0:00:00]} 28. Qxd5 {[%emt 0:00:05]} Qb6+ {[%emt 0:01:43]} 29. Kh1 {[%emt 0:00:30]} Rd8 {[%emt 0:00:06]} 30. Qf3 {[%emt 0:02:17]} Qd4 {[%emt 0:03:16]} 31. Qb7 {[%emt 0:05:36]} Qf2 {[%emt 0:01:51]} 32. Rg1 {[%emt 0:00:32]} Be2 {[%emt 0:01:08]} 33. Qc7 {[%emt 0:01:36]} Rd2 {[%emt 0:01:40]} 34. Qc8+ {[%emt 0:02:51]} Kh7 {[%emt 0:00:04]} 35. Qf5+ {[%emt 0:00:57]} Kg8 {[%emt 0:00:11]} 36. Qc8+ {[%emt 0:01:19]} Kh7 {[%emt 0:00:04]} 37. Qf5+ {[%emt 0:05:36]} Kg8 {[%emt 0:00:08]} 38. Qc8+ {[%emt 0:00:27]} 1/2-1/2

[Event "Romanian-ch Open 2022"]
[Site "Eforie Nord"]
[Date "2022.02.21"]
[Round "2.27"]
[White "Tamas, Christian-Arrydan"]
[Black "Popescu, Daniel-Vasilica"]
[Result "1-0"]
[ECO "A43"]
[WhiteElo "1833"]
[BlackElo "2064"]
[Annotator "ChessBase"]
[PlyCount "101"]
[EventDate "2022.02.20"]
[EventType "swiss"]
[EventCountry "ROU"]
[SourceTitle "playchess.com"]
[Source "ChessBase"]
[SourceQuality "1"]
[TimeControl "40/5400+30:900+30"]

1. d4 {[%emt 0:00:02]} Nf6 {[%emt 0:06:30]} 2. Nf3 {[%emt 0:00:15]} c5 {[%emt 0:00:04]} 3. d5 {[%emt 0:00:12]} e6 {[%emt 0:00:06]} 4. Nc3 {[%emt 0:00:12]} exd5 {[%emt 0:00:38]} 5. Nxd5 {[%emt 0:00:08]} Nxd5 {[%emt 0:00:04]} 6. Qxd5 {[%emt 0:00:08]} Nc6 {[%emt 0:00:04]} 7. e4 {[%emt 0:15:41]} Be7 {[%emt 0:00:20]} 8. Bc4 {[%emt 0:10:31]} O-O {[%emt 0:00:08]} 9. O-O {[%emt 0:00:14]} d6 {[%emt 0:00:05]} 10. c3 {[%emt 0:04:28]} Be6 {[%emt 0:03:59]} 11. Qd3 {[%emt 0:00:07]} a6 {[%emt 0:27:11]} 12. a4 {[%emt 0:07:14]} Na5 {[%emt 0:14:17]} 13. Bd5 {[%emt 0:07:46]} c4 {[%emt 0:04:49]} 14. Qd1 {[%emt 0:00:08]} Nb3 {[%emt 0:00:54]} 15. Ra3 {[%emt 0:02:04]} Nxc1 {[%emt 0:13:42]} 16. Qxc1 {[%emt 0:01:31]} Bxd5 {[%emt 0:00:03]} 17. exd5 {[%emt 0:00:09]} Bf6 {[%emt 0:00:33]} 18. Qf4 {[%emt 0:05:33]} Rc8 {[%emt 0:01:05]} 19. a5 {[%emt 0:16:17]} Rc5 {[%emt 0:01:06]} 20. Rd1 {[%emt 0:00:51]} Re8 {[%emt 0:03:14]} 21. Ra4 {[%emt 0:04:09]} Re2 {[%emt 0:03:25]} 22. Rb4 {[%emt 0:06:56]} Qc7 {[%emt 0:13:35]} 23. Qg4 {[%emt 0:09:37]} Re7 {[%emt 0:02:08]} 24. Nd2 {[%emt 0:03:50]} Rxd5 {[%emt 0:03:34]} 25. Rxc4 {[%emt 0:00:06]} Rc5 {[%emt 0:00:03]} 26. Rxc5 {[%emt 0:00:26]} dxc5 {[%emt 0:00:55]} 27. Ne4 {[%emt 0:02:23]} Be5 {[%emt 0:00:01]} 28. f4 {[%emt 0:00:28]} Bxf4 {[%emt 0:00:53]} 29. Qxf4 {[%emt 0:00:10]} Qc8 {[%emt 0:00:48]} 30. Nd6 {[%emt 0:02:37]} Qd8 {[%emt 0:00:39]} 31. Rf1 {[%emt 0:00:09]} Qc7 {[%emt 0:00:23]} 32. Nf5 {[%emt 0:00:32]} Re5 {[%emt 0:00:01]} 33. Qg3 {[%emt 0:00:34]} f6 {[%emt 0:00:22]} 34. Nh6+ {[%emt 0:00:25]} Kf8 {[%emt 0:00:45]} 35. Ng4 {[%emt 0:00:31]} Re7 {[%emt 0:00:05]} 36. Qxc7 {[%emt 0:00:04]} Rxc7 {[%emt 0:00:02]} 37. Rd1 {[%emt 0:00:42]} Ke7 {[%emt 0:00:31]} 38. Ne3 {[%emt 0:00:07]} Ke6 {[%emt 0:00:42]} 39. Kf2 {[%emt 0:00:38]} f5 {[%emt 0:01:22]} 40. Nc4 {[%emt 0:00:00]} Rc6 {[%emt 0:00:00]} 41. Re1+ {[%emt 0:00:57]} Kf6 {[%emt 0:01:02]} 42. Re8 {[%emt 0:00:12]} Rc7 {[%emt 0:00:19]} 43. Rd8 {[%emt 0:00:47]} f4 {[%emt 0:00:50]} 44. Rf8+ {[%emt 0:01:34]} Kg5 {[%emt 0:00:08]} 45. Ne5 {[%emt 0:00:33]} c4 {[%emt 0:00:42]} 46. Nf3+ {[%emt 0:00:22]} Kg6 {[%emt 0:00:02]} 47. Rxf4 {[%emt 0:00:08]} Rc5 {[%emt 0:00:09]} 48. Rxc4 {[%emt 0:00:09]} Rxa5 {[%emt 0:00:05]} 49. b4 {[%emt 0:01:18]} Ra2+ {[%emt 0:00:19]} 50. Kg3 {[%emt 0:00:06]} a5 {[%emt 0:00:07]} 51. Rc7 {[%emt 0:01:36]} 1-0

[Event "Romanian-ch Open 2022"]
[Site "Eforie Nord"]
[Date "2022.02.21"]
[Round "2.28"]
[White "Ignat, Matei-Marius"]
[Black "Pirvulescu, Adrian"]
[Result "1-0"]
[ECO "B04"]
[WhiteElo "2053"]
[BlackElo "1843"]
[Annotator "ChessBase"]
[PlyCount "63"]
[EventDate "2022.02.20"]
[EventType "swiss"]
[EventCountry "ROU"]
[SourceTitle "playchess.com"]
[Source "ChessBase"]
[SourceQuality "1"]
[TimeControl "40/5400+30:900+30"]

1. e4 {[%emt 0:00:06]} Nf6 {[%emt 0:00:22]} 2. e5 {[%emt 0:00:08]} Nd5 {[%emt 0:00:10]} 3. d4 {[%emt 0:00:05]} d6 {[%emt 0:00:16]} 4. Nf3 {[%emt 0:00:17]} Nb6 {[%emt 0:00:30]} 5. Be2 {[%emt 0:03:06]} g6 {[%emt 0:00:28]} 6. O-O {[%emt 0:01:18]} Bg7 {[%emt 0:00:04]} 7. c4 {[%emt 0:05:42]} O-O {[%emt 0:00:59]} 8. h3 {[%emt 0:15:25]} Bf5 {[%emt 0:22:39]} 9. b3 {[%emt 0:09:14]} Nc6 {[%emt 0:09:07]} 10. exd6 {[%emt 0:00:17]} cxd6 {[%emt 0:01:16]} 11. Bb2 {[%emt 0:00:50]} Bxb1 {[%emt 0:07:14]} 12. Rxb1 {[%emt 0:00:32]} d5 {[%emt 0:00:08]} 13. c5 {[%emt 0:03:36]} Nc8 {[%emt 0:00:49]} 14. Qd2 {[%emt 0:01:05]} e6 {[%emt 0:00:42]} 15. b4 {[%emt 0:01:57]} a6 {[%emt 0:00:22]} 16. a4 {[%emt 0:01:03]} N8e7 {[%emt 0:02:01]} 17. b5 {[%emt 0:06:17]} axb5 {[%emt 0:01:01]} 18. axb5 {[%emt 0:00:36]} Na5 {[%emt 0:01:40]} 19. Qb4 {[%emt 0:01:04]} Nf5 {[%emt 0:04:13]} 20. Ra1 {[%emt 0:01:29]} b6 {[%emt 0:02:25]} 21. Ra2 {[%emt 0:05:28]} Nc6 {[%emt 0:18:42]} 22. Rxa8 {[%emt 0:16:29]} Nxb4 {[%emt 0:00:53]} 23. Rxd8 {[%emt 0:00:04]} Rxd8 {[%emt 0:00:35]} 24. cxb6 {[%emt 0:00:05]} Nc2 {[%emt 0:15:53]} 25. Rc1 {[%emt 0:03:11]} Ncxd4 {[%emt 0:02:59]} 26. Nxd4 {[%emt 0:02:23]} Nxd4 {[%emt 0:05:49]} 27. Bxd4 {[%emt 0:00:06]} Bxd4 {[%emt 0:00:05]} 28. b7 {[%emt 0:00:02]} Ba7 {[%emt 0:01:56]} 29. Rc8 {[%emt 0:00:09]} Rf8 {[%emt 0:00:22]} 30. b6 {[%emt 0:00:17]} Bb8 {[%emt 0:00:21]} 31. Bb5 {[%emt 0:00:06]} f5 {[%emt 0:01:26]} 32. Be8 {[%emt 0:00:56]} 1-0

[Event "Romanian-ch Open 2022"]
[Site "Eforie Nord"]
[Date "2022.02.21"]
[Round "2.30"]
[White "Veress, Armand"]
[Black "Visanescu, Dragos-Nicholas"]
[Result "1-0"]
[ECO "D00"]
[WhiteElo "2034"]
[BlackElo "1781"]
[Annotator "ChessBase"]
[PlyCount "75"]
[EventDate "2022.02.20"]
[EventType "swiss"]
[EventCountry "ROU"]
[SourceTitle "playchess.com"]
[Source "ChessBase"]
[SourceQuality "1"]
[TimeControl "40/5400+30:900+30"]

1. d4 {[%emt 0:02:29]} d5 {[%emt 0:00:05]} 2. Bg5 {[%emt 0:00:26]} h6 {[%emt 0:00:19]} 3. Bh4 {[%emt 0:00:06]} c6 {[%emt 0:00:06]} 4. Nf3 {[%emt 0:01:53]} Qb6 {[%emt 0:00:06]} 5. b3 {[%emt 0:00:18]} Bf5 {[%emt 0:00:17]} 6. e3 {[%emt 0:01:15]} e6 {[%emt 0:00:45]} 7. Bd3 {[%emt 0:00:23]} Bxd3 {[%emt 0:00:11]} 8. Qxd3 {[%emt 0:00:18]} Ne7 {[%emt 0:00:22]} 9. Bg3 {[%emt 0:06:18]} Nf5 {[%emt 0:01:36]} 10. O-O {[%emt 0:01:57]} Nxg3 {[%emt 0:00:12]} 11. hxg3 {[%emt 0:00:06]} Nd7 {[%emt 0:00:15]} 12. c4 {[%emt 0:01:52]} Be7 {[%emt 0:02:09]} 13. Nc3 {[%emt 0:01:47]} O-O {[%emt 0:00:43]} 14. c5 {[%emt 0:07:25]} Qc7 {[%emt 0:02:05]} 15. b4 {[%emt 0:01:21]} e5 {[%emt 0:04:05]} 16. Qf5 {[%emt 0:02:48]} Bf6 {[%emt 0:01:50]} 17. Rab1 {[%emt 0:06:41]} a5 {[%emt 0:04:06]} 18. Na4 {[%emt 0:10:28]} e4 {[%emt 0:09:06]} 19. Nd2 {[%emt 0:02:50]} b5 {[%emt 0:01:34]} 20. cxb6 {[%emt 0:01:35]} Nxb6 {[%emt 0:00:47]} 21. Nxb6 {[%emt 0:00:58]} Qxb6 {[%emt 0:00:05]} 22. b5 {[%emt 0:00:51]} c5 {[%emt 0:08:02]} 23. dxc5 {[%emt 0:02:25]} Qxc5 {[%emt 0:02:38]} 24. Nxe4 {[%emt 0:00:19]} Qe7 {[%emt 0:04:30]} 25. Nxf6+ {[%emt 0:00:07]} Qxf6 {[%emt 0:00:39]} 26. Qxf6 {[%emt 0:00:10]} gxf6 {[%emt 0:00:04]} 27. Rfd1 {[%emt 0:00:06]} Rfd8 {[%emt 0:00:26]} 28. Rbc1 {[%emt 0:00:18]} Ra7 {[%emt 0:01:17]} 29. Rd4 {[%emt 0:00:53]} Re7 {[%emt 0:04:18]} 30. Rc6 {[%emt 0:01:30]} Re6 {[%emt 0:00:32]} 31. Rc7 {[%emt 0:00:41]} Re4 {[%emt 0:08:37]} 32. Ra7 {[%emt 0:00:47]} Rxd4 {[%emt 0:01:46]} 33. exd4 {[%emt 0:00:05]} Rb8 {[%emt 0:00:51]} 34. Rxa5 {[%emt 0:00:06]} Kf8 {[%emt 0:00:07]} 35. a4 {[%emt 0:00:04]} Ke7 {[%emt 0:00:06]} 36. Ra7+ {[%emt 0:00:05]} Ke6 {[%emt 0:00:38]} 37. g4 {[%emt 0:00:09]} f5 {[%emt 0:00:50]} 38. Ra6+ {[%emt 0:00:08]} 1-0

[Event "Romanian-ch Open 2022"]
[Site "Eforie Nord"]
[Date "2022.02.22"]
[Round "3.12"]
[White "Creanga, Robert-Ionut"]
[Black "Anton, Teodor"]
[Result "1-0"]
[ECO "E32"]
[WhiteElo "2115"]
[BlackElo "2457"]
[Annotator "RC"]
[PlyCount "53"]
[EventDate "2022.02.20"]
[EventType "swiss"]
[EventCountry "ROU"]
[SourceTitle "playchess.com"]
[Source "ChessBase"]
[SourceQuality "1"]
[TimeControl "40/5400+30:900+30"]

1. d4 {[%emt 1:31:00]} Nf6 {[%emt 0:00:56]} 2. c4 {[%emt 0:00:00]} e6 {[%emt 0:01:02]} 3. Nc3 {[%emt 0:00:00]} Bb4 {[%emt 0:01:24]} 4. Qc2 {[%emt 0:00:00]} b6 {[%emt 0:00:18]} 5. e4 {[%emt 0:00:00]} Bb7 {[%emt 0:01:17]} 6. Bd3 {[%emt 0:00:00]} Bxc3+ {[%emt 0:00:51]} 7. bxc3 {[%emt 0:00:00]} d6 {[%emt 0:00:11]} 8. Ne2 {[%emt 0:00:00]} Nbd7 {[%emt 0:01:08]} 9. O-O {[%emt 0:00:00]} e5 {[%emt 0:01:06]} 10. f4 {[%emt 0:00:00]} Qe7 {[%emt 0:02:38]} 11. Ng3 {[%emt 0:00:00]} O-O-O {[%emt 0:04:35]} 12. fxe5 {[%emt 0:00:00]} dxe5 {[%emt 0:00:15]} 13. Nf5 {[%emt 0:00:00]} Qf8 {[%emt 0:01:14]} 14. c5 bxc5 {[%emt 0:09:19]} 15. Ba3 {[%emt 0:00:00]} g6 {[%emt 0:01:29]} 16. Ne3 {[%emt 0:00:00]} Qh6 {[%emt 0:00:34]} 17. Bc1 {[%emt 0:00:00]} Qh5 {[%emt 0:11:03]} 18. d5 {[%emt 0:00:00]} Ne8 {[%emt 0:09:55]} 19. Nc4 {[%emt 0:00:00]} Nd6 {[%emt 0:14:54]} 20. Nxd6+ {[%emt 0:00:00]} cxd6 {[%emt 0:00:07]} 21. Rb1 {[%emt 0:00:00]} Nb6 {[%emt 0:10:20]} 22. a4 {[%emt 0:00:00]} Kc7 {[%emt 0:02:18]} 23. a5 {[%emt 0:00:00]} Nd7 {[%emt 0:00:14]} 24. Rxb7+ {[%emt 0:00:00]} Kxb7 {[%emt 0:00:05]} 25. Qa4 {[%emt 0:00:00]} Nb8 {[%emt 0:02:33]} 26. Rxf7+ {[%emt 0:00:00]} Ka8 {[%emt 0:00:33]} 27. Ba6 {[%emt 0:00:00]} 1-0

[Event "Romanian-ch Open 2022"]
[Site "Eforie Nord"]
[Date "2022.02.22"]
[Round "3.21"]
[White "Rosu, Adrian Haralambie"]
[Black "Voiteanu, Gabriel"]
[Result "0-1"]
[ECO "C45"]
[WhiteElo "1550"]
[BlackElo "2207"]
[Annotator "RC"]
[PlyCount "38"]
[EventDate "2022.02.20"]
[EventType "swiss"]
[EventCountry "ROU"]
[SourceTitle "playchess.com"]
[Source "ChessBase"]
[SourceQuality "1"]
[TimeControl "40/5400+30:900+30"]

1. e4 {[%emt 0:00:06]} e5 {[%emt 0:00:35]} 2. Nf3 {[%emt 0:00:11]} Nc6 {[%emt 0:00:07]} 3. d4 {[%emt 0:00:13]} exd4 {[%emt 0:00:17]} 4. Nxd4 {[%emt 0:00:11]} Nf6 {[%emt 0:00:08]} 5. Nxc6 {[%emt 0:00:33]} bxc6 {[%emt 0:00:04]} 6. e5 {[%emt 0:00:05]} Qe7 {[%emt 0:00:13]} 7. Qe2 {[%emt 0:00:10]} Nd5 {[%emt 0:00:10]} 8. c4 {[%emt 0:02:12]} Nb6 {[%emt 0:00:25]} 9. Nc3 {[%emt 0:01:10]} Qe6 {[%emt 0:03:32]} 10. Qe4 {[%emt 0:04:20]} d5 {[%emt 0:20:58]} 11. exd6 {[%emt 0:11:25]} Bxd6 {[%emt 0:04:49]} 12. Be2 {[%emt 0:01:17]} Bb4 {[%emt 0:07:07]} 13. Bd2 {[%emt 0:17:53]} Bxc3 {[%emt 0:05:39]} 14. Qxe6+ {[%emt 0:00:16]} Bxe6 {[%emt 0:00:08]} 15. Bxc3 {[%emt 0:00:17]} Bxc4 {[%emt 0:13:55]} 16. Bxg7 {[%emt 0:18:38]} Rg8 {[%emt 0:00:26]} 17. Bxc4 {[%emt 0:00:32]} Nxc4 {[%emt 0:06:41]} 18. Rc1 {[%emt 0:04:34]} O-O-O {[%emt 0:01:39]} 19. Rxc4 {[%emt 0:02:51]} Rge8+ {[%emt 0:00:19]} 0-1

[Event "Romanian-ch Open 2022"]
[Site "Eforie Nord"]
[Date "2022.02.22"]
[Round "4.7"]
[White "Nevednichy, Vladislav"]
[Black "Magold, Filip"]
[Result "1-0"]
[ECO "B90"]
[WhiteElo "2498"]
[BlackElo "2204"]
[Annotator "ChessBase"]
[PlyCount "87"]
[EventDate "2022.02.20"]
[EventType "swiss"]
[EventCountry "ROU"]
[SourceTitle "playchess.com"]
[Source "ChessBase"]
[SourceQuality "1"]
[TimeControl "40/5400+30:900+30"]

1. e4 {[%emt 0:00:03]} c5 {[%emt 0:00:05]} 2. Nf3 {[%emt 0:00:07]} d6 {[%emt 0:00:10]} 3. d4 {[%emt 0:00:04]} cxd4 {[%emt 0:00:04]} 4. Nxd4 {[%emt 0:00:04]} Nf6 {[%emt 0:00:06]} 5. Nc3 {[%emt 0:00:03]} a6 {[%emt 0:00:04]} 6. a4 {[%emt 0:00:06]} g6 {[%emt 0:01:33]} 7. Be2 {[%emt 0:00:05]} Bg7 {[%emt 0:00:18]} 8. O-O {[%emt 0:00:10]} O-O {[%emt 0:01:24]} 9. Be3 {[%emt 0:00:09]} Nbd7 {[%emt 0:00:33]} 10. a5 {[%emt 0:01:39]} Qc7 {[%emt 0:00:36]} 11. f3 {[%emt 0:14:05]} e6 {[%emt 0:03:06]} 12. Qd2 {[%emt 0:05:52]} h5 {[%emt 0:13:54]} 13. Rfd1 {[%emt 0:03:57]} Re8 {[%emt 0:06:09]} 14. Nb3 {[%emt 0:06:28]} d5 {[%emt 0:02:32]} 15. exd5 {[%emt 0:03:29]} exd5 {[%emt 0:02:15]} 16. Bf4 {[%emt 0:01:37]} Ne5 {[%emt 0:05:53]} 17. Na4 {[%emt 0:06:39]} Bf5 {[%emt 0:07:04]} 18. Nd4 {[%emt 0:01:37]} Bd7 {[%emt 0:00:15]} 19. Nb6 {[%emt 0:02:53]} Rad8 {[%emt 0:00:09]} 20. Rac1 {[%emt 0:15:22]} Qc5 {[%emt 0:02:04]} 21. b4 {[%emt 0:01:00]} Qe7 {[%emt 0:00:58]} 22. Bg5 {[%emt 0:01:20]} Bc8 {[%emt 0:25:52]} 23. Re1 {[%emt 0:02:31]} Qd6 {[%emt 0:03:07]} 24. c3 {[%emt 0:01:40]} Ned7 {[%emt 0:07:12]} 25. Na4 {[%emt 0:07:21]} Kh7 {[%emt 0:03:29]} 26. Rcd1 {[%emt 0:01:39]} Ne5 {[%emt 0:00:37]} 27. Nb6 {[%emt 0:01:18]} Nc6 {[%emt 0:02:27]} 28. Bf4 {[%emt 0:02:03]} Ne5 {[%emt 0:01:27]} 29. Bg5 {[%emt 0:00:59]} Nc6 {[%emt 0:00:04]} 30. Nb3 {[%emt 0:05:32]} Bf5 {[%emt 0:01:36]} 31. Bf4 {[%emt 0:03:36]} Qf8 {[%emt 0:01:39]} 32. Bg5 {[%emt 0:04:39]} Qd6 {[%emt 0:02:56]} 33. g3 {[%emt 0:01:59]} d4 {[%emt 0:01:52]} 34. Nxd4 {[%emt 0:00:28]} Nxd4 {[%emt 0:00:05]} 35. cxd4 {[%emt 0:00:13]} Nd5 {[%emt 0:00:54]} 36. Bxd8 {[%emt 0:03:00]} Rxd8 {[%emt 0:00:02]} 37. Nxd5 {[%emt 0:00:58]} Qxd5 {[%emt 0:00:02]} 38. Kg2 {[%emt 0:00:38]} h4 {[%emt 0:00:20]} 39. Qf4 {[%emt 0:03:23]} h3+ {[%emt 0:00:26]} 40. Kf1 {[%emt 0:00:00]} Bxd4 {[%emt 0:00:00]} 41. Rd2 {[%emt 0:03:36]} Re8 {[%emt 0:16:29]} 42. Qxd4 {[%emt 0:02:09]} Qb3 {[%emt 0:00:09]} 43. g4 {[%emt 0:00:46]} Rxe2 {[%emt 0:01:14]} 44. Kxe2 {[%emt 0:00:10]} 1-0

[Event "Romanian-ch Open 2022"]
[Site "Eforie Nord"]
[Date "2022.02.22"]
[Round "4.8"]
[White "Stepanencu, Nicodim-Cosmin"]
[Black "Manolache, Marius"]
[Result "0-1"]
[ECO "B43"]
[WhiteElo "2334"]
[BlackElo "2485"]
[Annotator "ChessBase"]
[PlyCount "138"]
[EventDate "2022.02.20"]
[EventType "swiss"]
[EventCountry "ROU"]
[SourceTitle "playchess.com"]
[Source "ChessBase"]
[SourceQuality "1"]
[TimeControl "40/5400+30:900+30"]

1. e4 {[%emt 0:00:03]} c5 {[%emt 0:00:11]} 2. Nf3 {[%emt 0:00:06]} e6 {[%emt 0:00:05]} 3. d4 {[%emt 0:00:10]} cxd4 {[%emt 0:00:05]} 4. Nxd4 {[%emt 0:00:05]} a6 {[%emt 0:00:07]} 5. Nc3 {[%emt 0:00:12]} Qc7 {[%emt 0:00:06]} 6. Qd3 {[%emt 0:00:25]} Nf6 {[%emt 0:03:24]} 7. Qg3 {[%emt 0:00:16]} Qxg3 {[%emt 0:05:19]} 8. hxg3 {[%emt 0:00:03]} Bc5 {[%emt 0:00:58]} 9. Nb3 {[%emt 0:02:19]} Ba7 {[%emt 0:03:24]} 10. f3 {[%emt 0:03:07]} Nc6 {[%emt 0:03:49]} 11. Bf4 {[%emt 0:05:41]} d5 {[%emt 0:09:26]} 12. exd5 {[%emt 0:01:38]} Nb4 {[%emt 0:23:45]} 13. O-O-O {[%emt 0:00:39]} Nfxd5 {[%emt 0:00:35]} 14. Nxd5 {[%emt 0:11:49]} Nxd5 {[%emt 0:00:06]} 15. Be5 {[%emt 0:00:03]} Ne3 {[%emt 0:02:53]} 16. Rd3 {[%emt 0:00:47]} f6 {[%emt 0:00:35]} 17. Bd4 {[%emt 0:14:46]} Bxd4 {[%emt 0:06:15]} 18. Nxd4 {[%emt 0:03:14]} Nxf1 {[%emt 0:00:11]} 19. Rxf1 {[%emt 0:00:01]} e5 {[%emt 0:00:10]} 20. Nb3 {[%emt 0:01:04]} Bf5 {[%emt 0:00:23]} 21. Rd6 {[%emt 0:00:43]} Rc8 {[%emt 0:04:39]} 22. Rf2 {[%emt 0:13:43]} Rc7 {[%emt 0:03:17]} 23. Na5 {[%emt 0:01:35]} h5 {[%emt 0:02:16]} 24. b3 {[%emt 0:18:57]} h4 {[%emt 0:05:02]} 25. g4 {[%emt 0:01:19]} Ke7 {[%emt 0:01:26]} 26. Rb6 {[%emt 0:03:38]} Bc8 {[%emt 0:00:07]} 27. g5 {[%emt 0:10:10]} Rd8 {[%emt 0:16:01]} 28. gxf6+ {[%emt 0:03:29]} gxf6 {[%emt 0:00:07]} 29. f4 {[%emt 0:03:58]} e4 {[%emt 0:04:25]} 30. Re2 {[%emt 0:00:01]} Rd4 {[%emt 0:00:36]} 31. Kb2 {[%emt 0:01:27]} Bg4 {[%emt 0:01:01]} 32. Re3 {[%emt 0:00:20]} f5 {[%emt 0:01:56]} 33. Nc4 {[%emt 0:00:19]} Kf8 {[%emt 0:00:37]} 34. c3 {[%emt 0:00:50]} Rd1 {[%emt 0:00:15]} 35. Rh6 {[%emt 0:00:22]} Rg1 {[%emt 0:02:12]} 36. Rxh4 {[%emt 0:00:02]} Rxg2+ {[%emt 0:00:15]} 37. Ka3 {[%emt 0:00:01]} b5 {[%emt 0:00:55]} 38. Ne5 {[%emt 0:01:12]} a5 {[%emt 0:00:36]} 39. Rh8+ {[%emt 0:00:25]} Kg7 {[%emt 0:00:23]} 40. Ra8 {[%emt 0:00:00]} Rxc3 {[%emt 0:00:00]} 41. Ra7+ {[%emt 0:02:09]} Kh6 {[%emt 0:03:11]} 42. Ra6+ {[%emt 0:06:52]} Kh5 {[%emt 0:02:24]} 43. Ra7 {[%emt 0:01:25]} b4+ {[%emt 0:04:14]} 44. Ka4 {[%emt 0:00:01]} Kh6 {[%emt 0:00:20]} 45. Re1 {[%emt 0:04:02]} Rxa2+ {[%emt 0:03:55]} 46. Kb5 {[%emt 0:00:01]} Rd2 {[%emt 0:00:43]} 47. Rh1+ {[%emt 0:03:58]} Rh3 {[%emt 0:01:04]} 48. Rc1 {[%emt 0:00:57]} Rc3 {[%emt 0:02:46]} 49. Rh1+ {[%emt 0:00:15]} Bh3 {[%emt 0:00:13]} 50. Ra6+ {[%emt 0:01:06]} Kh5 {[%emt 0:01:39]} 51. Rf6 {[%emt 0:00:43]} Kh4 {[%emt 0:01:07]} 52. Rh6+ {[%emt 0:00:28]} Kg3 {[%emt 0:00:05]} 53. R1xh3+ {[%emt 0:00:32]} Kxf4 {[%emt 0:00:45]} 54. Ng6+ {[%emt 0:00:16]} Kg4 {[%emt 0:00:31]} 55. R3h4+ {[%emt 0:00:40]} Kg5 {[%emt 0:00:43]} 56. R4h5+ {[%emt 0:00:06]} Kg4 {[%emt 0:00:36]} 57. Rh4+ {[%emt 0:00:51]} Kf3 {[%emt 0:00:31]} 58. Rh3+ {[%emt 0:00:38]} Ke2 {[%emt 0:00:16]} 59. Rh1 {[%emt 0:00:29]} Kd3 {[%emt 0:00:39]} 60. Ne5+ {[%emt 0:00:30]} Kc2 {[%emt 0:00:17]} 61. Nc4 {[%emt 0:00:27]} e3 {[%emt 0:01:22]} 62. Rc6 {[%emt 0:00:34]} f4 {[%emt 0:00:33]} 63. Ra1 {[%emt 0:00:29]} Kxb3 {[%emt 0:00:30]} 64. Nxd2+ {[%emt 0:00:25]} exd2 {[%emt 0:00:05]} 65. Rd6 {[%emt 0:00:03]} Rc1 {[%emt 0:00:11]} 66. Rxd2 {[%emt 0:01:00]} Rxa1 {[%emt 0:00:07]} 67. Rf2 {[%emt 0:00:17]} Re1 {[%emt 0:00:15]} 68. Kxa5 {[%emt 0:00:15]} Re5+ {[%emt 0:00:06]} 69. Kb6 {[%emt 0:00:08]} Rf5 {[%emt 0:00:07]} 0-1